fUST/lending_fUST_20260205
["ID","MTS","AMOUNT","RATE_DAILY","PERIOD"]
[404501267,1770226471511,-494.45,0.00044412,120]
[404501268,1770226471545,-492.77,0.00044412,120]
[404501269,1770226471574,-257.69961511,0.000447,120]
[404501270,1770226471604,-500.0,0.00045,120]
[404501271,1770226471634,-200.0,0.00045054,120]
[404501272,1770226471666,-494.45,0.00045266,120]
[404501273,1770226471699,-604.945531,0.0004579,60]
[404501274,1770226471727,-153.64287333,0.00046,120]
[404501275,1770226471758,-500.0,0.00046,120]
[404501276,1770226471789,-494.45,0.00046121,120]
[404501277,1770226471826,-492.77,0.00046121,120]
[404501278,1770226471858,-678.5,0.00046504,60]
[404501279,1770226471889,-300.0,0.00046575,120]
[404501280,1770226471918,-300.0,0.00046575,120]
[404501281,1770226471947,-300.0,0.00046575,120]
[404501282,1770226471979,-406.0,0.00046825,16]
[404501283,1770226472011,-494.45,0.00046976,120]
[404501284,1770226472041,-500.0,0.00047,120]
[404501285,1770226472073,-255.0,0.00047,90]
[404501286,1770226472102,-255.0,0.00047524,90]
[404501287,1770226472131,-494.45,0.00047831,120]
[404501288,1770226472159,-492.77,0.00047831,120]
[404501289,1770226472189,-500.0,0.00048,120]
[404501290,1770226472218,-156.29,0.000482,14]
[404501291,1770226472247,-756.34,0.000482,14]
[404501292,1770226472277,-494.45,0.00048685,120]
[404501293,1770226472305,-200.0,0.00048746,120]
[404501294,1770226472338,-200.0,0.0004889,120]
[404501295,1770226472516,-150.0,0.00049,120]
[404501296,1770226472545,-500.0,0.00049,120]
[404501297,1770226472574,-1000.0,0.00049298,120]
[404501298,1770226472600,-1000.0,0.00049298,120]
[404501299,1770226472626,-1000.0,0.00049298,120]
[404501300,1770226472654,-494.45,0.0004954,120]
[404501301,1770226472681,-492.77,0.0004954,120]
[404501302,1770226472707,-255.0,0.00049613,120]
[404501303,1770226472733,-8200.54839803,0.0005,120]
[404501304,1770226472762,-500.0,0.0005,120]
[404501305,1770226472789,-160.7068,0.0005,120]
[404501306,1770226472818,-152.0,0.0005,120]
[404501307,1770226472845,-154.37425095,0.0005,120]
[404501308,1770226472872,-494.45,0.00050395,120]
[404501309,1770226472898,-304.08360269,0.00051,120]
[404501310,1770226472924,-153.0,0.00051,120]
[404501311,1770226472950,-500.0,0.00051,120]
[404501312,1770226472976,-461.02753643,0.00051,120]
[404501313,1770226473003,-293.17,0.000511,14]
[404501314,1770226473032,-200.0,0.00051233,120]
[404501315,1770226473061,-494.45,0.0005125,120]
[404501316,1770226473092,-492.77,0.0005125,120]
[404501317,1770226473119,-152.0,0.000516,120]
[404501318,1770226473145,-174.09,0.000518,14]
[404501319,1770226473172,-500.0,0.00052,120]
[404501320,1770226473198,-257.0,0.00052093,120]
[404501321,1770226473226,-494.45,0.00052104,120]
[404501322,1770226473252,-494.45,0.00052959,120]
[404501323,1770226473278,-492.77,0.00052959,120]
[404501324,1770226473303,-500.0,0.00053,120]
[404501325,1770226473331,-152.0,0.000532,120]
[404501326,1770226473356,-38000.0,0.00053203,18]
[404501327,1770226473382,-38000.0,0.00053212,18]
[404501328,1770226473407,-38000.0,0.0005322,18]
[404501329,1770226473434,-38000.0,0.00053229,18]
[404501330,1770226473462,-500.0,0.00053425,120]
[404501331,1770226473489,-500.0,0.00053425,120]
[404501332,1770226473517,-500.0,0.00053425,120]
[404501333,1770226473545,-500.0,0.00053425,120]
[404501334,1770226473575,-500.0,0.00053425,120]
[404501335,1770226473602,-500.0,0.00053425,120]
[404501336,1770226473629,-505.05168887,0.00053425,120]
[404501337,1770226473657,-150.0,0.00053425,120]
[404501338,1770226473685,-500.0,0.00053425,120]
[404501339,1770226473714,-202.41865959,0.00053425,120]
[404501340,1770226473742,-500.0,0.00053425,120]
[404501341,1770226473778,-470.82635095,0.00053425,120]
[404501342,1770226473810,-500.0,0.00053425,120]
[404501343,1770226473841,-500.0,0.00053425,120]
[404501344,1770226473869,-150.0,0.00053425,84]
[404501345,1770226473896,-516.79748109,0.00053425,120]
[404501346,1770226473923,-150.0,0.00053425,120]
[404501347,1770226473950,-150.0,0.00053425,84]
[404501348,1770226473979,-500.0,0.00053425,120]
[404501349,1770226474006,-150.0,0.00053425,120]
[404501350,1770226474035,-500.0,0.00053425,120]
[404501351,1770226474061,-292.45970376,0.00053425,120]
[404501352,1770226474093,-201.86824577,0.00053425,120]
[404501353,1770226474120,-500.0,0.00053425,120]
[404501354,1770226474146,-500.0,0.00053425,120]
[404501355,1770226474173,-500.0,0.00053425,120]
[404501356,1770226474200,-500.0,0.00053425,120]
[404501357,1770226474227,-500.0,0.00053425,120]
[404501358,1770226474253,-500.0,0.00053425,120]
[404501359,1770226474278,-151.07590603,0.00053425,120]
[404501360,1770226474304,-500.0,0.00053425,120]
[404501361,1770226474333,-150.0,0.00053425,120]
[404501362,1770226474360,-500.0,0.00053425,120]
[404501363,1770226474387,-505.74013917,0.00053425,120]
[404501364,1770226474414,-150.0,0.00053425,120]
[404501365,1770226474439,-500.0,0.00053425,120]
[404501366,1770226474466,-150.0,0.00053425,120]
[404501367,1770226474492,-500.0,0.00053425,120]
[404501368,1770226474519,-150.0,0.00053425,120]
[404501369,1770226474544,-500.0,0.00053425,120]
[404501370,1770226474574,-150.0,0.00053425,120]
[404501371,1770226474600,-500.0,0.00053425,120]
[404501372,1770226474627,-500.0,0.00053425,120]
[404501373,1770226474653,-150.0,0.00053425,120]
[404501374,1770226474681,-218.34852113,0.00053425,120]
[404501375,1770226474708,-617.23094391,0.00053425,120]
[404501376,1770226474736,-500.0,0.00053425,120]
[404501377,1770226474765,-500.0,0.00053425,120]
[404501378,1770226474792,-194.65116397,0.00053425,120]
[404501379,1770226474913,-500.0,0.00053425,120]
[404501380,1770226474940,-500.0,0.00053425,120]
[404501381,1770226474968,-500.0,0.00053425,120]
[404501382,1770226474994,-500.0,0.00053425,120]
[404501383,1770226475023,-352.13701746,0.00053425,120]
[404501384,1770226475050,-500.0,0.00053425,120]
[404501385,1770226475077,-500.0,0.00053425,120]
[404501386,1770226475104,-551.57411197,0.00053425,120]
[404501387,1770226475129,-150.0,0.00053425,120]
[404501388,1770226475154,-151.16587703,0.00053425,120]
[404501389,1770226475180,-150.4025982,0.00053425,120]
[404501390,1770226475205,-500.0,0.00053425,120]
[404501391,1770226475230,-150.0,0.00053425,120]
[404501392,1770226475255,-500.0,0.00053425,120]
[404501393,1770226475280,-150.0,0.00053425,120]
[404501394,1770226475307,-500.0,0.00053425,120]
[404501395,1770226475334,-350.0,0.00053425,120]
[404501396,1770226475363,-500.0,0.00053425,120]
[404501397,1770226475389,-500.0,0.00053425,120]
[404501398,1770226475417,-500.0,0.00053425,120]
[404501399,1770226475443,-500.0,0.00053425,120]
[404501400,1770226475468,-500.0,0.00053425,120]
[404501401,1770226475493,-500.0,0.00053425,120]
[404501402,1770226475518,-500.0,0.00053425,120]
[404501403,1770226475544,-500.0,0.00053425,120]
[404501404,1770226475571,-500.0,0.00053425,120]
[404501405,1770226475596,-500.0,0.00053425,120]
[404501406,1770226475621,-500.0,0.00053425,120]
[404501407,1770226475647,-500.0,0.00053425,120]
[404501408,1770226475672,-500.0,0.00053425,120]
[404501409,1770226475698,-500.0,0.00053425,120]
[404501410,1770226475724,-500.0,0.00053425,120]
[404501411,1770226475752,-500.0,0.00053425,120]
[404501412,1770226475779,-500.0,0.00053425,120]
[404501413,1770226475808,-500.0,0.00053425,120]
[404501414,1770226475838,-500.0,0.00053425,120]
[404501415,1770226475865,-500.0,0.00053425,120]
[404501416,1770226475893,-634.15117705,0.00053425,120]
[404501417,1770226475921,-500.0,0.00053425,120]
[404501418,1770226475947,-500.0,0.00053425,120]
[404501419,1770226475973,-500.0,0.00053425,120]
[404501420,1770226476000,-150.0,0.00053425,120]
[404501421,1770226476028,-150.0,0.00053425,120]
[404501422,1770226476054,-500.0,0.00053425,120]
[404501423,1770226476084,-150.0,0.00053425,120]
[404501424,1770226476110,-500.0,0.00053425,120]
[404501425,1770226476136,-500.0,0.00053425,120]
[404501426,1770226476162,-260.02395534,0.00053425,120]
[404501427,1770226476188,-500.0,0.00053614,120]
[404501428,1770226476214,-508.83200147,0.0005379,30]
[404501429,1770226476239,-1000.00000004,0.00054,120]
[404501430,1770226476263,-475.0,0.00054246,120]
[404501431,1770226476288,-475.0,0.00054246,120]
[404501432,1770226476313,-475.0,0.00054246,120]
[404501433,1770226476345,-342.666839,0.00054649,60]
[404501434,1770226476372,-9029.321918,0.00054649,60]
[404501435,1770226476397,-49003.5162354,0.000547,120]
[404501436,1770226476423,-511.82984356,0.00054794,30]
[404501437,1770226476448,-500.0,0.00054794,120]
[404501438,1770226476475,-331.12659968,0.00054794,120]
[404501439,1770226476501,-500.0,0.00054794,120]
[404501440,1770226476527,-500.0,0.00054794,120]
[404501441,1770226476552,-894.58,0.00054794,120]
[404501442,1770226476576,-755.5,0.00054794,120]
[404501443,1770226476603,-798.61,0.00054794,120]
[404501444,1770226476628,-500.0,0.00054794,120]
[404501445,1770226476652,-500.0,0.00054794,120]
[404501446,1770226476678,-500.0,0.00054794,120]
[404501447,1770226476703,-500.0,0.00054794,120]
[404501448,1770226476729,-500.0,0.00054794,120]
[404501449,1770226476756,-485.66328149,0.00054794,120]
[404501450,1770226476780,-500.0,0.00054794,120]
[404501451,1770226476806,-212.21577699,0.00054794,120]
[404501452,1770226476834,-500.0,0.00054794,120]
[404501453,1770226476860,-500.0,0.00054794,120]
[404501454,1770226476885,-500.0,0.00054794,120]
[404501455,1770226476911,-500.0,0.00054794,120]
[404501456,1770226476936,-152.31893561,0.00054794,120]
[404501457,1770226476963,-500.0,0.00054794,120]
[404501458,1770226476989,-499.52315096,0.00054794,120]
[404501459,1770226477016,-524.046267,0.00054794,120]
[404501460,1770226477043,-524.40997113,0.00054794,120]
[404501461,1770226477071,-200.0,0.00054794,120]
[404501462,1770226477098,-411.15718454,0.00054794,120]
[404501463,1770226477125,-500.0,0.00054794,120]
[404501464,1770226477151,-584.47131598,0.00054794,120]
[404501465,1770226477176,-580.49,0.00054794,120]
[404501466,1770226477201,-844.68,0.00054794,120]
[404501467,1770226477327,-165.96736899,0.00054794,120]
[404501468,1770226477352,-500.0,0.00054794,120]
[404501469,1770226477378,-500.0,0.00054794,120]
[404501470,1770226477404,-500.0,0.00054794,120]
[404501471,1770226477429,-644.81213121,0.00054794,120]
[404501472,1770226477455,-593.47573695,0.00054794,120]
[404501473,1770226477481,-506.15648772,0.00054794,60]
[404501474,1770226477507,-546.32219121,0.00054794,120]
[404501475,1770226477533,-531.31271966,0.00054794,120]
[404501476,1770226477560,-165.67513049,0.00054794,120]
[404501477,1770226477588,-550.0,0.00054794,30]
[404501478,1770226477615,-500.0,0.00054794,120]
[404501479,1770226477642,-436.79023955,0.00054794,120]
[404501480,1770226477667,-500.0,0.00054794,120]
[404501481,1770226477693,-526.63239748,0.00054794,120]
[404501482,1770226477720,-501.99756941,0.00054794,120]
[404501483,1770226477749,-466.14824037,0.00054794,120]
[404501484,1770226477780,-393.70396095,0.00054794,120]
[404501485,1770226477809,-435.43740215,0.00054794,120]
[404501486,1770226477841,-514.32480453,0.00054794,120]
[404501487,1770226477868,-522.55106393,0.00054794,120]
[404501488,1770226477896,-536.17174153,0.00054794,120]
[404501489,1770226477924,-529.61868598,0.00054794,120]
[404501490,1770226477951,-572.05685307,0.00054794,120]
[404501491,1770226477978,-502.05612632,0.00054794,120]
[404501492,1770226478006,-643.34682858,0.00054794,120]
[404501493,1770226478035,-544.52593101,0.00054794,120]
[404501494,1770226478063,-643.60531267,0.00054794,120]
[404501495,1770226478093,-544.26660582,0.00054794,120]
[404501496,1770226478123,-257.13695594,0.00054794,120]
[404501497,1770226478151,-500.0,0.00054794,55]
[404501498,1770226478179,-1000.0,0.00054794,120]
[404501499,1770226478207,-202.12717477,0.00054794,120]
[404501500,1770226478236,-500.0,0.00054794,120]
[404501501,1770226478263,-150.0,0.00054794,120]
[404501502,1770226478292,-500.0,0.00054794,120]
[404501503,1770226478321,-523.97028736,0.00054794,120]
[404501504,1770226478349,-500.0,0.00054794,120]
[404501505,1770226478376,-512.06156893,0.00054794,120]
[404501506,1770226478404,-500.0,0.00054794,120]
[404501507,1770226478431,-500.0,0.00054794,120]
[404501508,1770226478460,-506.17845142,0.00054794,120]
[404501509,1770226478488,-1306.45,0.00054794,30]
[404501510,1770226478515,-943.85,0.00054794,120]
[404501511,1770226478542,-500.0,0.00054794,120]
[404501512,1770226478571,-500.0,0.00054794,120]
[404501513,1770226478599,-646.66,0.00054794,120]
[404501514,1770226478626,-500.0,0.00054794,120]
[404501515,1770226478657,-339.17581614,0.00054794,120]
[404501516,1770226478684,-500.0,0.00054794,120]
[404501517,1770226478711,-3071.68,0.00054794,120]
[404501518,1770226478739,-153.98050803,0.00054794,120]
[404501519,1770226478770,-414.56115828,0.00054794,120]
[404501520,1770226478799,-910.57,0.00054794,120]
[404501521,1770226478829,-1992.44,0.00054794,120]
[404501522,1770226478857,-500.02998724,0.00054794,120]
[404501523,1770226478885,-440.26867339,0.00054794,120]
[404501524,1770226478912,-500.0,0.00054794,120]
[404501525,1770226478939,-1822.49,0.00054794,120]
[404501526,1770226478966,-166.1781477,0.00054794,120]
[404501527,1770226478993,-500.0,0.00054794,120]
[404501528,1770226479021,-537.14,0.00054794,120]
[404501529,1770226479048,-500.0,0.00054794,120]
[404501530,1770226479077,-500.0,0.00054794,120]
[404501531,1770226479105,-2360.49,0.00054794,120]
[404501532,1770226479134,-500.0,0.00054794,120]
[404501533,1770226479162,-500.0,0.00054794,120]
[404501534,1770226479190,-524.88947845,0.00054794,120]
[404501535,1770226479217,-594.11825712,0.00054794,120]
[404501536,1770226479244,-500.0,0.00054794,120]
[404501537,1770226479271,-580.41175814,0.00054794,120]
[404501538,1770226479297,-188.43037748,0.00054794,120]
[404501539,1770226479325,-500.0,0.00054794,120]
[404501540,1770226479351,-500.0,0.00054794,10]
[404501541,1770226479377,-1399.55,0.00054794,120]
[404501542,1770226479403,-500.0,0.00054794,120]
[404501543,1770226479429,-2053.94,0.00054794,21]
[404501544,1770226479456,-500.0,0.00054794,120]
[404501545,1770226479482,-500.0,0.00054794,120]
[404501546,1770226479508,-153.7090204,0.00054794,120]
[404501547,1770226479536,-704.04,0.00054794,120]
[404501548,1770226479563,-577.35950773,0.00054794,120]
[404501549,1770226479593,-500.0,0.00054794,120]
[404501550,1770226479620,-647.93644539,0.00054794,120]
[404501551,1770226479645,-500.0,0.00054794,120]
[404501552,1770226479673,-500.0,0.00054794,120]
[404501553,1770226479701,-560.79,0.00054794,120]
[404501554,1770226479824,-746.61,0.00054794,120]
[404501555,1770226479853,-1400.35,0.00054794,120]
[404501556,1770226479880,-500.0,0.00054794,120]
[404501557,1770226479906,-500.0,0.00054794,120]
[404501558,1770226479931,-613.40136714,0.00054794,120]
[404501559,1770226479960,-5948.45,0.00054794,120]
[404501560,1770226479989,-999.0,0.00054794,120]
[404501561,1770226480016,-861.03,0.00054794,120]
[404501562,1770226480045,-670.83,0.00054794,120]
[404501563,1770226480078,-500.0,0.00054794,120]
[404501564,1770226480106,-619.71374409,0.00054794,120]
[404501565,1770226480134,-500.0,0.00054794,120]
[404501566,1770226480163,-633.41737777,0.00054794,120]
[404501567,1770226480191,-266.20734333,0.00054794,120]
[404501568,1770226480218,-500.0,0.00054794,120]
[404501569,1770226480245,-500.0,0.00054794,120]
[404501570,1770226480273,-273.78376438,0.00054794,120]
[404501571,1770226480300,-500.0,0.00054794,120]
[404501572,1770226480326,-500.0,0.00054794,120]
[404501573,1770226480352,-500.0,0.00054794,120]
[404501574,1770226480380,-500.0,0.00054794,120]
[404501575,1770226480408,-168.10896432,0.00054794,120]
[404501576,1770226480436,-12762.41,0.00054794,90]
[404501577,1770226480462,-151.0,0.00054795,120]
[404501578,1770226480488,-151.0,0.00054795,120]
[404501579,1770226480514,-151.0,0.00054795,120]
[404501580,1770226480540,-151.0,0.00054795,120]
[404501581,1770226480566,-151.0,0.00054795,120]
[404501582,1770226480594,-151.0,0.00054795,120]
[404501583,1770226480621,-151.0,0.00054795,120]
[404501584,1770226480646,-151.0,0.00054795,120]
[404501585,1770226480671,-151.0,0.00054795,120]
[404501586,1770226480698,-151.0,0.00054795,120]
[404501587,1770226480724,-151.0,0.00054795,120]
[404501588,1770226480751,-151.0,0.00054795,120]
[404501589,1770226480780,-203.813677,0.00054795,120]
[404501590,1770226480808,-154.010988,0.00054795,120]
[404501591,1770226480839,-154.010988,0.00054795,120]
[404501592,1770226480866,-154.010988,0.00054795,120]
[404501593,1770226480893,-154.010988,0.00054795,120]
[404501594,1770226480922,-154.010988,0.00054795,120]
[404501595,1770226480949,-154.010988,0.00054795,120]
[404501596,1770226480981,-154.010988,0.00054795,120]
[404501597,1770226481008,-154.010988,0.00054795,120]
[404501598,1770226481036,-154.010988,0.00054795,120]
[404501599,1770226481063,-154.010988,0.00054795,120]
[404501600,1770226481093,-154.010988,0.00054795,120]
[404501601,1770226481120,-154.010988,0.00054795,120]
[404501602,1770226481146,-154.010988,0.00054795,120]
[404501603,1770226481174,-154.010988,0.00054795,120]
[404501604,1770226481200,-154.010988,0.00054795,120]
[404501605,1770226481227,-154.010988,0.00054795,120]
[404501606,1770226481253,-154.010988,0.00054795,120]
[404501607,1770226481288,-154.010988,0.00054795,120]
[404501608,1770226481326,-154.010988,0.00054795,120]
[404501609,1770226481354,-154.010994,0.00054795,120]
[404501610,1770226481798,251.2,0.0004,30]
[404501611,1770226481829,251.2,0.00042,30]
[404501612,1770226491164,632.5,0.00039696,20]
[404501613,1770226501005,-366.399572,0.00025935,30]
[404501614,1770226501038,-549.599358,0.0003458,60]
[404501615,1770226501073,-366.399572,0.0005187,60]
[404501616,1770226501104,-500.0,0.00054794,120]
[404501617,1770226501134,-857.3,0.00054794,120]
[404501618,1770226501162,-1746.55,0.00054794,120]
[404501619,1770226501192,-152.0,0.000548,120]
[404501620,1770226501218,-183.08768921,0.000549,120]
[404501621,1770226501246,-200.0,0.000549,120]
[404501622,1770226501275,-703.8749773,0.00055,120]
[404501623,1770226501301,-1041.66666667,0.00055,120]
[404501624,1770226501329,-700.21,0.00055,120]
[404501625,1770226501361,-20000.0,0.000551,105]
[404501626,1770226501388,-200.0,0.00055165,120]
[404501627,1770226501416,-20000.0,0.000552,110]
[404501628,1770226501442,-20000.0,0.000553,110]
[404501629,1770226501469,-50000.0,0.0005535,110]
[404501630,1770226501501,-2207.973618,0.00055481,120]
[404501631,1770226501528,-50000.0,0.000555,90]
[404501632,1770226501554,-50000.0,0.0005555,120]
[404501633,1770226501580,-255.0,0.00055566,120]
[404501634,1770226501610,-500.0,0.00055616,120]
[404501635,1770226501636,-500.0,0.00055616,120]
[404501636,1770226501663,-500.0,0.00055616,120]
[404501637,1770226501689,-755.5,0.00055616,120]
[404501638,1770226501717,-798.61,0.00055616,120]
[404501639,1770226501744,-500.0,0.00055616,120]
[404501640,1770226501773,-573.68043484,0.00055616,120]
[404501641,1770226501801,-500.0,0.00055616,120]
[404501642,1770226501829,-501.42892506,0.00055616,120]
[404501643,1770226501857,-500.0,0.00055616,120]
[404501644,1770226501884,-500.0,0.00055616,120]
[404501645,1770226501911,-500.0,0.00055616,120]
[404501646,1770226501939,-500.0,0.00055616,120]
[404501647,1770226501967,-500.0,0.00055616,120]
[404501648,1770226501994,-200.0,0.00055616,120]
[404501649,1770226502022,-500.0,0.00055616,120]
[404501650,1770226502049,-580.49,0.00055616,120]
[404501651,1770226502075,-844.68,0.00055616,120]
[404501652,1770226502107,-500.0,0.00055616,120]
[404501653,1770226502134,-500.0,0.00055616,120]
[404501654,1770226502160,-550.0,0.00055616,30]
[404501655,1770226502189,-500.0,0.00055616,120]
[404501656,1770226502217,-500.0,0.00055616,120]
[404501657,1770226502243,-500.0,0.00055616,55]
[404501658,1770226502269,-1000.0,0.00055616,120]
[404501659,1770226502297,-500.0,0.00055616,120]
[404501660,1770226502455,-151.0,0.00055616,120]
[404501661,1770226502483,-500.0,0.00055616,120]
[404501662,1770226502510,-500.0,0.00055616,120]
[404501663,1770226502537,-500.0,0.00055616,120]
[404501664,1770226502566,-1306.45,0.00055616,30]
[404501665,1770226502594,-943.85,0.00055616,120]
[404501666,1770226502620,-500.0,0.00055616,120]
[404501667,1770226502645,-500.0,0.00055616,120]
[404501668,1770226502671,-646.66,0.00055616,120]
[404501669,1770226502698,-614.80344866,0.00055616,120]
[404501670,1770226502725,-500.0,0.00055616,120]
[404501671,1770226502752,-3071.68,0.00055616,120]
[404501672,1770226502783,-1992.44,0.00055616,120]
[404501673,1770226502812,-500.0,0.00055616,120]
[404501674,1770226502839,-500.0,0.00055616,120]
[404501675,1770226502871,-537.14,0.00055616,120]
[404501676,1770226502900,-500.0,0.00055616,120]
[404501677,1770226502927,-500.0,0.00055616,120]
[404501678,1770226502954,-2360.49,0.00055616,120]
[404501679,1770226502981,-500.0,0.00055616,120]
[404501680,1770226503008,-313.13598433,0.00055616,120]
[404501681,1770226503036,-587.31202573,0.00055616,120]
[404501682,1770226503065,-500.0,0.00055616,120]
[404501683,1770226503099,-1399.55,0.00055616,120]
[404501684,1770226503128,-500.0,0.00055616,120]
[404501685,1770226503156,-258.21669221,0.00055616,120]
[404501686,1770226503185,-500.0,0.00055616,120]
[404501687,1770226503213,-704.04,0.00055616,120]
[404501688,1770226503242,-164.07957441,0.00055616,120]
[404501689,1770226503270,-500.0,0.00055616,120]
[404501690,1770226503298,-500.0,0.00055616,120]
[404501691,1770226503326,-560.79,0.00055616,120]
[404501692,1770226503355,-746.61,0.00055616,120]
[404501693,1770226503383,-1400.35,0.00055616,120]
[404501694,1770226503410,-500.0,0.00055616,120]
[404501695,1770226503440,-500.0,0.00055616,120]
[404501696,1770226503471,-5948.45,0.00055616,120]
[404501697,1770226503500,-861.03,0.00055616,120]
[404501698,1770226503530,-670.83,0.00055616,120]
[404501699,1770226503559,-500.0,0.00055616,120]
[404501700,1770226503589,-500.0,0.00055616,120]
[404501701,1770226503619,-500.0,0.00055616,120]
[404501702,1770226503648,-500.0,0.00055616,120]
[404501703,1770226503678,-516.08268312,0.00055616,120]
[404501704,1770226503707,-500.0,0.00055616,120]
[404501705,1770226503736,-512.96159163,0.00055616,120]
[404501706,1770226503767,-12762.41,0.00055616,90]
[404501707,1770226503798,-857.3,0.00055616,120]
[404501708,1770226503829,-1746.55,0.00055616,120]
[404501709,1770226503859,-166.25,0.000557,30]
[404501710,1770226503890,-200.0,0.00055954,120]
[404501711,1770226503922,-15083.0,0.0005625,115]
[404501712,1770226503952,-50000.0,0.0005635,120]
[404501713,1770226503983,-152.0,0.000564,120]
[404501714,1770226504015,-500.0,0.00056438,120]
[404501715,1770226504046,-500.0,0.00056438,120]
[404501716,1770226504077,-500.0,0.00056438,120]
[404501717,1770226504109,-755.5,0.00056438,120]
[404501718,1770226504140,-798.61,0.00056438,120]
[404501719,1770226504173,-500.0,0.00056438,120]
[404501720,1770226504205,-596.38065161,0.00056438,120]
[404501721,1770226504235,-500.0,0.00056438,120]
[404501722,1770226504265,-500.0,0.00056438,120]
[404501723,1770226504295,-500.0,0.00056438,120]
[404501724,1770226504325,-491.44619857,0.00056438,120]
[404501725,1770226504354,-500.0,0.00056438,120]
[404501726,1770226504384,-200.0,0.00056438,120]
[404501727,1770226504413,-500.0,0.00056438,120]
[404501728,1770226504442,-580.49,0.00056438,120]
[404501729,1770226504472,-844.68,0.00056438,120]
[404501730,1770226504501,-500.0,0.00056438,120]
[404501731,1770226504530,-500.0,0.00056438,120]
[404501732,1770226504559,-550.0,0.00056438,30]
[404501733,1770226504593,-549.45319576,0.00056438,120]
[404501734,1770226504623,-500.0,0.00056438,120]
[404501735,1770226504652,-500.0,0.00056438,55]
[404501736,1770226504682,-1000.0,0.00056438,120]
[404501737,1770226504711,-500.0,0.00056438,120]
[404501738,1770226504741,-500.0,0.00056438,120]
[404501739,1770226504774,-500.0,0.00056438,120]
[404501740,1770226504803,-577.1075293,0.00056438,120]
[404501741,1770226504835,-1306.45,0.00056438,30]
[404501742,1770226504871,-943.85,0.00056438,120]
[404501743,1770226504998,-500.0,0.00056438,120]
[404501744,1770226505031,-500.0,0.00056438,120]
[404501745,1770226505076,-646.66,0.00056438,120]
[404501746,1770226505115,-500.0,0.00056438,120]
[404501747,1770226505149,-3071.68,0.00056438,120]
[404501748,1770226505183,-1992.44,0.00056438,120]
[404501749,1770226505218,-500.0,0.00056438,120]
[404501750,1770226505255,-500.0,0.00056438,120]
[404501751,1770226505291,-537.14,0.00056438,120]
[404501752,1770226505324,-500.0,0.00056438,120]
[404501753,1770226505362,-500.0,0.00056438,120]
[404501754,1770226505396,-2360.49,0.00056438,120]
[404501755,1770226505430,-500.0,0.00056438,120]
[404501756,1770226505464,-500.0,0.00056438,120]
[404501757,1770226505503,-1399.55,0.00056438,120]
[404501758,1770226505551,-500.0,0.00056438,120]
[404501759,1770226505588,-704.04,0.00056438,120]
[404501760,1770226505625,-500.0,0.00056438,120]
[404501761,1770226505658,-520.78576747,0.00056438,120]
[404501762,1770226505693,-560.79,0.00056438,120]
[404501763,1770226505726,-746.61,0.00056438,120]
[404501764,1770226505761,-1400.35,0.00056438,120]
[404501765,1770226505797,-517.772971,0.00056438,120]
[404501766,1770226505832,-500.0,0.00056438,120]